Cogmind - Beta 15 @@@ ROGUE MODE // 2025.05.06 @ 13:50:27 Player: opdo Result: Destroyed by G-47 Trooper with Particle Gun Performance ------------- Evolutions (0) 0 Regions Visited (2) 400 Robots Destroyed (9) 45 Value Destroyed (321) 321 Prototype IDs (0) 0 Alien Tech Used (0) 0 Bonus (0) 0 TOTAL SCORE: 766 Bonus ------- None Cogmind --------- Core Integrity 0/250 Matter 265/300 Energy 77/100 System Corruption 0% Temperature Cool (9) Movement Walking (120) Location -10/Subcaves Parts ------- > --- POWER (1) -------- (None) > --- PROPULSION (2) --- Aluminum Leg Aluminum Leg > --- UTILITY (2) ------ Medium Storage Unit Structural Scanner > --- WEAPON (2) ------- Battle Rifle Grenade Launcher > --- INVENTORY (10) --- Spiked Treads Aluminum Leg Heat Sink Light Assault Rifle Subdweller Machine Gun Light Cannon Mining Claw Peak State ------------ > --- POWER ------------ Light Nuclear Core > --- PROPULSION ------- Aluminum Leg > --- UTILITY ---------- Medium Storage Unit Structural Scanner > --- WEAPON ----------- Light Assault Rifle Battle Rifle > --- INVENTORY -------- Spiked Treads Aluminum Leg Aluminum Leg Aluminum Leg Heat Sink Subdweller Machine Gun Light Cannon Grenade Launcher Mining Claw [Rating: 10] Favorites ----------- Power Light Ion Engine Engine Light Ion Engine Power Core Light Nuclear Core Propulsion Aluminum Leg Leg Aluminum Leg Utility Medium Storage Unit Device Structural Scanner Storage Medium Storage Unit Protection Propulsion Shielding Weapon Light Assault Rifle Energy Gun Small Laser Ballistic Gun Light Assault Rifle Ballistic Cannon Light Cannon Launcher Grenade Launcher Slashing Weapon Mining Claw Build | -11 -10 -10 ------- Run | Yrd Mat Sub Slots Evolved . | . . . Power . | . . . Propulsion . | . . . Utility . | . . . Weapon . | . . . Parts Attached 18 | 6 4 8 Power 4 | 1 1 2 Engine 3 | 1 1 1 Core 1 | . . 1 Reactor . | . . . Propulsion 4 | 2 . 2 Treads . | . . . Leg 4 | 2 . 2 Wheel . | . . . Hover . | . . . Flight . | . . . Utility 4 | 1 2 1 Device 1 | . . 1 Storage 2 | 1 1 . Processor . | . . . Hackware . | . . . Protection 1 | . 1 . Artifact . | . . . Weapon 6 | 2 1 3 Energy Gun 1 | 1 . . Energy Cannon . | . . . Ballistic Gun 2 | 1 . 1 Ballistic Cannon 1 | . . 1 Launcher 1 | . . 1 Special Weapon . | . . . Impact Weapon . | . . . Slashing Weapon 1 | . 1 . Piercing Weapon . | . . . Special Melee Weapon . | . . . Unidentified Prototypes . | . . . Parts Lost 5 | . . 5 Power 2 | . . 2 Propulsion 2 | . . 2 Utility 1 | . . 1 Weapon . | . . . Highest Loss Streak 4 | . . 4 To Critical Strikes 1 | . . 1 Average Backups 9 | 1 8 9 Power 1 | . 1 1 Propulsion 3 | 1 2 3 Utility . | . . . Weapon 3 | . 3 3 Tool/Special . | . . . Unused Backups 12 | . 5 7 Power . | . . . Propulsion 5 | . 3 2 Utility 2 | . 1 1 Weapon 5 | . 1 4 Tool/Special . | . . . Average Slot Usage (%) 97 | . 95 98 Engine 13 | . 14 12 Leg 27 | . 28 27 Device 1 | . . 2 Storage 14 | . 14 14 Protection 10 | . 9 11 Energy Gun 6 | . 14 2 Ballistic Gun 15 | . 13 16 Ballistic Cannon 4 | . . 7 Slashing Weapon 1 | . . 1 Peak Build Rating 10 | 6 8 10 Average Rating 7 | 4 7 8 On Entrance 4 | . 6 8 Naked Turns . | . . . Heaviest Build 20 | 10 20 20 Greatest Support 20 | 20 20 20 Greatest Overweight (x) . | . . . Average Overweight (x) . | . . . Largest Inventory Capacity 10 | 8 10 10 Average Capacity 9 | 6 9 10 Most Carried 10 | 3 10 10 Average Carried 9 | 1 8 9 Final Capacity 10 | 8 10 10 Final Carried 10 | 3 10 7 Class Distribution -------------------- 100% | Mutant Dominant Class ---------------- Mutant | -10/Materials Mutant | -10/Subcaves Resources | -11 -10 -10 ----------- Run | Yrd Mat Sub Matter Collected 494 | 196 114 184 Remotely . | . . . Salvage Created 354 | . 156 198 Parts 15 | . 8 7 Haulers Intercepted . | . . . Recyclers Shooed 1 | . 1 . Parts Field Recycled . | . . . Retrieved Matter . | . . . Parts Self-Destructed 2 | . . 2 Prevented . | . . . Kills | -11 -10 -10 ------- Run | Yrd Mat Sub Combat Hostiles Destroyed 8 | . 3 5 Guns 6 | . 3 3 Cannons 2 | . . 2 Classes Destroyed 4 | . 2 2 Worker 1 | . 1 . Grunt 3 | . 3 . Sentry 1 | . . 1 Subdweller 4 | . . 4 Best Kill Streak 2 | . 2 2 Combat Bots Only 2 | . 2 2 Max Kills in Single Turn 1 | . 1 1 Gunslinging . | . . . Exploded . | . . . Melee . | . . . Uniques/NPCs Destroyed . | . . . Combat | -11 -10 -10 -------- Run | Yrd Mat Sub Hostile Shots Fired 64 | . 14 50 Missed 11 | . 2 9 Hits 53 | . 12 41 Projectile 53 | . 12 41 Critical Strikes 3 | . . 3 Actively Blocked 3 | . . 3 Damage Taken 1024 | . 139 885 Core 260 | . 22 238 Absorbed by Shields . | . . . Redirected to Shielding 52 | . 12 40 Core Remaining (%) 100 | 100 . . Volleys Fired 45 | . 13 32 Largest 2 | . 2 2 Hottest 60 | . 60 55 Shots Fired 88 | . 24 64 Gun 71 | . 24 47 Cannon 16 | . . 16 Launcher 1 | . . 1 Special . | . . . Kinetic 76 | . 13 63 Thermal 11 | . 11 . Explosive 1 | . . 1 Electromagnetic . | . . . Robot Hit Streak 20 | . 7 20 Robot Miss Streak 2 | . 2 2 Penetration Max . | . . . Secondary Targets . | . . . Shots Hit Robots 68 | . 14 54 Core Hits 24 | . 9 15 Critical Kills . | . . . Critical Parts Destroyed . | . . . Critical Strikes . | . . . Melee Attacks 11 | . 1 10 Impact . | . . . Slashing 11 | . 1 10 Piercing . | . . . Sneak Attacks . | . . . Combat Hostiles . | . . . Follow-up Attacks . | . . . Damage Inflicted 877 | . 163 714 Guns 542 | . 130 412 Cannons 224 | . . 224 Explosions 78 | . . 78 Melee . | . . . Ramming 33 | . 33 . Kinetic 690 | . 54 636 Thermal 76 | . 76 . Explosive 78 | . . 78 Electromagnetic . | . . . Impact . | . . . Slashing . | . . . Piercing . | . . . Highest Corruption . | . . . Average Corruption . | . . . Corruption Purged . | . . . Corruption Blocked . | . . . Overload Shots . | . . . Overflow Damage . | . . . Projectiles . | . . . Explosions . | . . . Melee . | . . . Knockbacks 6 | . . 6 Impact . | . . . Kinetic 6 | . . 6 Secondary . | . . . Self-Inflicted Damage . | . . . Shots . | . . . Rammed . | . . . Targets Rammed 6 | . 6 . Kicked 6 | . 6 . Crushed . | . . . Highest Temperature 141 | . 141 . Average Temperature 64 | . 64 . Received Heat Transfer 297 | . 81 216 Siege Activations . | . . . Martial Activations . | . . . Shielding Activations . | . . . Robots Disrupted . | . . . Combat Hostiles . | . . . Robots Corrupted . | . . . Combat Hostiles . | . . . Parts Fried . | . . . Impact Corruptions . | . . . Robots Melted . | . . . Combat Hostiles . | . . . Parts Melted 2 | . . 2 Heat Transferred 175 | . 175 . Parts Sabotaged . | . . . Parts Stolen . | . . . Parts Stripped . | . . . Power Chain Reactions . | . . . Alert | -11 -10 -10 ------- Run | Yrd Mat Sub Maximum Alert Level . | . . . Low Security (%) 100 | 100 100 . Level 1 . | . . . Level 2 . | . . . Level 3 . | . . . Level 4 . | . . . Level 5 . | . . . High Security . | . . . Max Security . | . . . Peak Influence 46 | . 46 . Initial . | . . . Average 6 | . 6 . Influence Increases 149 | . 99 50 Destroy 0b10 Robot/C 80 | . 60 20 Destroy 0b10 Robot/NC 5 | . 5 . Destroy Leader 10 | . 10 . Successful Hack 23 | . 23 . Destroy Structure 1 | . 1 . Lose Combat Pursuer 30 | . . 30 Influence Decreases 119 | . 99 20 Time Decay 119 | . 99 20 Squads Dispatched . | . . . Investigation . | . . . Extermination . | . . . Reinforcement . | . . . Assault . | . . . Garrison . | . . . Intercept . | . . . Searches Triggered . | . . . Construction Impeded . | . . . Haulers Reinforced . | . . . Active Scanning Responses . | . . . Cargo Convoy Interrupts . | . . . Stealth | -11 -10 -10 --------- Run | Yrd Mat Sub Distress Signals . | . . . Communications Jammed . | . . . Distress Signals . | . . . Times Spotted 14 | . 6 8 Peak Tracking Total 2 | . 2 2 Tactical Retreats 1 | . . 1 Traps | -11 -10 -10 ------- Run | Yrd Mat Sub Traps Triggered 2 | . . 2 Indirectly . | . . . Trap Hack Attempts . | . . . Triggered . | . . . Disarmed . | . . . Reprogrammed . | . . . Reused . | . . . Traps Extracted . | . . . Installed . | . . . Triggered . | . . . Machines | -11 -10 -10 ---------- Run | Yrd Mat Sub Machines Disabled . | . . . Max in Single Turn . | . . . Machines Repaired . | . . . Machines Dismantled . | . . . Machines Sabotaged . | . . . Overloaded Fab Kills . | . . . Hacking | -11 -10 -10 --------- Run | Yrd Mat Sub Machines Accessed 7 | . 7 . Terminals 7 | . 7 . Fabricators . | . . . Repair Stations . | . . . Recycling Units . | . . . Scanalyzers . | . . . Garrison Access . | . . . Total Hacks 20 | . 20 . Successful 9 | . 9 . Failed 11 | . 11 . Catastrophic 1 | . 1 . Database Lockouts . | . . . Manual 20 | . 20 . Terminals 20 | . 20 . Fabricators . | . . . Repair Stations . | . . . Recycling Units . | . . . Scanalyzers . | . . . Garrison Access . | . . . Terminal Hacks 3 | . 3 . Robot Analysis 2 | . 2 . Branch Access Points 1 | . 1 . Fabricator Hacks . | . . . Repair Station Hacks . | . . . Recycling Unit Hacks . | . . . Scanalyzer . | . . . Garrison Access Hacks . | . . . Unauthorized Hacks 6 | . 6 . Terminals 6 | . 6 . Botnet 1 | . 1 . Skim 5 | . 5 . Fabricators . | . . . Repair Stations . | . . . Recycling Units . | . . . Scanalyzers . | . . . Garrison Access . | . . . Data Cores Recovered . | . . . Used . | . . . Hacking Detections 5 | . 5 . Full Trace Events . | . . . Feedback Events . | . . . Feedback Blocked . | . . . Robot Schematics Acquired . | . . . Robots Built . | . . . Authchips . | . . . Time . | . . . Total Robot Build Rating . | . . . Part Schematics Acquired . | . . . Parts Built . | . . . Authchips . | . . . Time . | . . . Total Part Build Rating . | . . . Parts Repaired . | . . . Time . | . . . Parts Recycled . | . . . Recycled Matter . | . . . Retrieved Matter . | . . . Retrieved Components . | . . . Parts Scanalyzed . | . . . Part Schematics Acquired . | . . . Parts Damaged . | . . . Bothacking | -11 -10 -10 ------------ Run | Yrd Mat Sub Used RIF Installer . | . . . Robots Hacked . | . . . Non-combat . | . . . Combat . | . . . Robot Hacks Applied . | . . . Relay Couplers Released . | . . . Fabnet Peak Effective % . | . . . Robots Rewired . | . . . Allies Hacked . | . . . Hacks Repelled . | . . . Allies | -11 -10 -10 -------- Run | Yrd Mat Sub Total Allies . | . . . Largest Group . | . . . Highest-Rated Group . | . . . Highest-Rated Ally . | . . . Total Orders . | . . . Ally Attacks . | . . . Total Damage . | . . . Kills . | . . . Allies Corrupted . | . . . Allies Melted . | . . . Intel | -11 -10 -10 ------- Run | Yrd Mat Sub Active Infowar (turns) 246 | . . 246 Structural 246 | . . 246 Robot Analysis Total 2 | . 2 . Derelict Logs Recovered 2 | . . 2 Drone Launches . | . . . Drone Recoveries . | . . . Exploration | -11 -10 -10 ------------- Run | Yrd Mat Sub Turns Passed 2276 | 69 853 1354 Spaces Moved 1607 | 49 554 1004 Core 2 | 2 . . Treads . | . . . Legs 1605 | 47 554 1004 Wheels . | . . . Hover . | . . . Flight . | . . . Fastest Speed 50 | 50 120 120 Average Speed 119 | 117 120 120 Slowest Speed 120 | 120 120 120 Overloaded Moves . | . . . Propulsion Burnouts . | . . . Robots Hopped . | . . . Potential Cave-ins . | . . . Cave-ins Triggered . | . . . Exploration Rate (%) 56 | 3 93 72 Regions Visited 2 Branch Regions 1 Pre-discovered Areas 2 | . . 2 Known Exits Taken 1 | . 1 . Unknown Exits Taken 1 | 1 . . Scrap Searched . | . . . Spaces Dug 1 | . 1 . Terrain Destroyed 9 | . 1 8 Melee 1 | . 1 . Projectile . | . . . AOE 8 | . . 8 Terrain Rammed . | . . . Walls Destroyed . | . . . Machines Disabled . | . . . Actions | -11 -10 -10 --------- Run | Yrd Mat Sub Total 1856 | 57 721 1078 Wait 132 | . 121 11 Move 1605 | 48 553 1004 Hop . | . . . Pick Up 22 | 3 13 6 Fast Attach 8 | 6 2 . Attach 4 | . . 4 Detach 1 | . 1 . Swap 8 | . 3 5 Drop 14 | . 8 6 Fire 45 | . 13 32 Melee 11 | . 1 10 Ram . | . . . Kick 6 | . 6 . Crush . | . . . Escape Stasis . | . . . Rewire . | . . . Trap . | . . . Miscellaneous . | . . . Route ------- -11/Scrapyard -10/Materials (discovered 6 exits: *Mat x3 / *Min x2 / *Sub) -10/Subcaves (discovered 1 exit: [*Mat]) History --------- Turn | Location | Event 6 | -11/Scrapyard | Discovered new exit (range 15) 70 | -11/Scrapyard | Entered Materials 164 | -10/Materials | Met 8R-AWN 223 | -10/Materials | Discovered new exit (range 16) 354 | -10/Materials | Build established: Mutant 442 | -10/Materials | Discovered new exit (range 14) 640 | -10/Materials | Learned 2 Storage zone layouts 667 | -10/Materials | Discovered new exit (range 8) 688 | -10/Materials | Identified exit to Mines 694 | -10/Materials | Identified exit to Materials 694 | -10/Materials | Identified exit to Subcaves 740 | -10/Materials | Learned location of 1 exit from Recycling 776 | -10/Materials | Loaded intel: 15 trap records 818 | -10/Materials | Loaded intel: 22 non-interactive machine locations 842 | -10/Materials | Learned Storage stockpile data 923 | -10/Materials | Entered Subcaves 924 | -10/Subcaves | Approached by a straggling Scientist 981 | -10/Subcaves | Learned location of Zion (-6) 1288 | -10/Subcaves | Learned Materials terminal intel 1371 | -10/Subcaves | Shifting Twisted Machinery released Sub. Machine Gun 1389 | -10/Subcaves | Shifting Twisted Machinery released Battle Rifle 1459 | -10/Subcaves | A swath of the cavern ceiling suddenly collapsed 1481 | -10/Subcaves | A swath of the cavern ceiling suddenly collapsed 1651 | -10/Subcaves | Core integrity fell below 50% 1662 | -10/Subcaves | Discovered new exit (range 7) 1711 | -10/Subcaves | Shifting Twisted Machinery released Sub. Beam Cannon 1793 | -10/Subcaves | Met a Zionite searching for "candidates" 1941 | -10/Subcaves | Shifting Twisted Machinery released Shrapnel Trap 2185 | -10/Subcaves | Core integrity fell below 20% 2219 | -10/Subcaves | Lost 4 parts (2p2n) 2277 | -10/Subcaves | Destroyed by G-47 Trooper with Particle Gun Last Messages --------------- 01882_ Acquired 3 matter. 01884_ Acquired 2 matter. 01887_ Acquired 1 matter. 01889_ Acquired 14 matter. Shrapnel Trap falls loose from the Twisted Machinery. 02029_ Propulsion Shielding destroyed. 02041_ Y-45 Defender destroyed. 02044_ Acquired 48 matter. 02045_ Heat Sink fries itself beyond repair. 02046_ Lgt. Treads fries itself beyond repair. 02046_ Acquired Heat Sink. 02168_ Critical hit (Destroy). 02168_ Lgt. Ion Engine destroyed. 02176_ Aluminum Leg destroyed. 02188_ Lgt. Nuclear Core destroyed. 02195_ 0A-IUE(R) destroyed. 02198_ Acquired 51 matter. 02200_ Subatomizers dissect the Disposable Heat Sink. Map ----- +----------------------------------------------------+ | ?????????????????????????????????????????????????? | | ?????????????????????????????????????????????????? | | ?????????????????????????????????????????????????? | | ?????????????????????????????????????????????????? | | ?????????????????????????????????????????????????? | | ?????????????????????????????????????????????????? | | ?????????????????????????????????????????????????? | | ?????????????????????????????????????????????????? | | ?????????????????????????????????????????????????? | | ?????????????????????????????????????????????????? | | ?????????????????????????????????????????????????? | | ?????????????????????????????????????????????????? | | ???????######????????????????????????????????????? | | ???????# #????????????????????????????????????? | | ???????? ##????????????????????????????????????? | | #??????## "#????????????????????????????????????? | | ####?###" "###????????#####?????????????????????? | | ### " ###??????######????????????????????? | | ##????? ###????????????????????? | | ### ## ##????# ##????????????????????? | | #####?# < #???### ##?######?????????????? | | ?????## #?##### ################??????? | | ????## ######### ##### #########??????? | | ##??# ### #??### #### ### ##??????? | | #?## #### ##??## #### ##??????? | | ### #### ##??## @#### ## ##??????? | | ## ##### ##### #### ## ##??????? | | ##### ## #### ## ###??????? | | # ###### ## ### # ###??????? | | ####### " ## gg ### ## ##???????? | | ????##"""" " ## %# #### ##???????? | | ???### """ " #### ########## ##???????? | | ???# """ ### ### ######### ##???????? | | ???##### "" ###### ### ###### ##???????? | | ??????### "" " ###### # ##### ###???????? | | ??????### """ ###### #### ###???????? | | ??????## " ###### ##### ###???????? | | ??????## " ##### ### ##### ##???????? | | ??????## ]""" ##### ######## ##???????? | | ??????###"""" ""### # ### ##???????? | | ??????#### " &"" " ######???????? | | ???????######"### ###########???? | | ????????########## ## ### # ####?#######???? | | ???????????####### ### ### #####?## ##???? | | ???????????????## ## ## ####### ##???? | | ???????????????### | ######## #????? | | ???????????####### "" ###### ####????? | | ???????????####### " ### ###### ##??????? | | ???????????## ## #### ## # # ##??????? | | ???????????## ""##### ##??????? | +----------------------------------------------------+ Best States ------------- Heat Dissipation 25 Energy Generation 14 Energy Capacity 250 Matter Stores 300 Matter Capacity 300 Sight Range 16 Terrain Scan Density 10 Propulsion Shielding 33 Evasion (%) 55 Item Schematics ----------------- None Robot Schematics ------------------ None Fabricated ------------ Nothing Repaired ---------- Nothing Alien Tech Used ----------------- None Achievements -------------- None Challenges ------------ None Game ------ Seed FocalDisintegrationSpiker Manual? 0 Play Time 00:14:40 Cumulative 92.5 hours Start 2025.05.06 @ 13:39:02 End 2025.05.06 @ 13:50:27 Sessions 1 Manual Loads 0 Difficulty Rogue Special Mode None Game No. 249 Rogue 247 Adventurer 2 Explorer 0 Win Type - Total 1 Types 1/0/0/0/0/0/0/0/0/0 Lore% 69 Gallery% 58 Achievement% 49 Wizard Run 0 Options --------- Layout 2 ASCII 0 Keyboard 0 Movement Arrows Keybinds 0 Fullscreen 2 Font 24/Smallcaps Map View 50x44 Zoom Use 0% Tactical HUD 1 Map Filters NONE Filters NONE Steam 1 RUN: b0518498-3f5a-41f6-830e-603533ce4d27